Workbook

Sheet Protect (hidden)

Sheet Publish IS (R)
A1: CONDENSED CONSOLIDATED INCOME STATEMENTS (RAND)
I5: 30
C6: Six months ended | G6: Year ended
C7: 30 June | D7: 31 December | E7: 30 June | G7: 30 June | H7: 30 June | I7: 30 June
C8: 2016 | D8: 2015 | E8: 2015 | G8: 2016 | H8: 2015 | I8: June
A9: Figures in million | B9: Note | C9: (Unaudited) | D9: (Unaudited) | E9: (Unaudited) | G9: (Reviewed) | H9: (Audited) | I9: (Audited)
A13: Revenue | C13: 9627 | D13: 8707 | E13: 7288 | G13: 18334 | H13: 15435 | I13: 15435
A14: Cost of sales | B14: 2 | C14: -7780 | D14: -8006 | E14: -10760 | G14: -15786 | H14: -19053 | I14: -19054
A17: Production costs | C17: -6535 | D17: -6715 | E17: -6018 | G17: -13250 | H17: -12632 | I17: -12631
A18: Amortisation and depreciation | C18: -1084 | D18: -1086 | E18: -1220 | G18: -2170 | H18: -2472 | I18: -2472
A19: Reversal of impairment/(impairment) of assets | C19: 43 | D19: 0 | E19: -3471 | G19: 43 | H19: -3471 | I19: -3471
A20: Other items | C20: -204 | D20: -205 | E20: -51 | F20: 0 | G20: -409 | H20: -478 | I20: -480
A23: Gross profit/(loss) | C23: 1847 | D23: 701 | E23: -3472 | G23: 2548 | H23: -3618 | I23: -3619
A24: Corporate, administration and other expenditure | C24: -227 | D24: -182 | E24: -185 | G24: -409 | H24: -378 | I24: -377
A25: Social investment expenditure | C25: -33 | D25: -25 | E25: -32 | G25: -58 | H25: -71 | I25: -71
A26: Exploration expenditure | C26: -88 | D26: -103 | E26: -83 | G26: -191 | H26: -263 | I26: -263
A27: Loss on scrapping of property, plant and equipment | C27: -64 | D27: 0 | E27: -61 | G27: -64 | H27: -491 | I27: 0
B28: 6
A29: Foreign exchange translation gain/(loss) | B29: 3 | C29: 606 | D29: -798 | E29: -125 | G29: -192 | H29: -367
A30: Other expenses (net) | C30: -31 | D30: -11 | E30: -9 | G30: -42 | H30: -5 | I30: -378
A33: Operating profit/(loss) | C33: 2010 | D33: -418 | E33: -3967 | G33: 1592 | H33: -5193 | I33: -4702
A34: Profit/(loss) from associates | B34: 7 | C34: -28 | D34: 35 | E34: -25 | G34: 7 | H34: -25 | I34: -26
A35: Profit on disposal of investments | C35: 0 | D35: 0 | E35: 4 | G35: 0 | H35: 4 | I35: 0
A36: Net gain/(loss) on financial instruments | C36: 28 | D36: -13 | E36: -8 | G36: 15 | H36: 9 | I36: 10
A37: Investment income | C37: 127 | D37: 114 | E37: 118 | G37: 241 | H37: 229 | I37: 229
A38: Finance cost | C38: -133 | D38: -141 | E38: -132 | G38: -274 | H38: -264 | I38: -263
A41: Profit/(loss) before taxation | C41: 2004 | D41: -423 | E41: -4010 | G41: 1581 | H41: -5240 | I41: -4752
A42: Taxation | B42: 4 | C42: -610 | D42: -22 | E42: 595 | G42: -632 | H42: 704 | I42: 703
A45: Normal taxation | C45: -122 | D45: -1 | E45: 7 | G45: -123 | H45: 5 | I45: 4
A46: Deferred taxation | C46: -488 | D46: -21 | E46: 588 | G46: -509 | H46: 699 | I46: 699
A49: Net profit/(loss) for the period | C49: 1394 | D49: -445 | E49: -3415 | G49: 949 | H49: -4536 | I49: -4049
A52: Attributable to:
A53: Owners of the parent | C53: 1394 | D53: -445 | E53: -3415 | G53: 949 | H53: -4536 | I53: -4049
A56: Earnings/(loss) per ordinary share (cents) | B56: 5
A58: Basic earnings/(loss) | C58: 320 | D58: -102 | E58: -786 | G58: 218 | H58: -1044 | I58: -293
A59: Diluted earnings/(loss) | C59: 306 | D59: -102 | E59: -786 | G59: 213 | H59: -1044 | I59: -293
A63: The accompanying notes are an integral part of these condensed consolidated financial statements.
A74: The condensed consolidated provisional financial statements (condensed consolidated financial statements) for the year ended 30 June 2016 have been prepared by Harmony Gold Mining Company Limited’s corporate reporting team headed by Herman Perry. This process was supervised by the financial director, Frank Abbott and approved by the board of Harmony Gold Mining Company Limited on 15 August 2016. These condensed consolidated financials have been reviewed by the group's external auditors, PricewaterhouseCoopers Incorporated (see note 16).
H376: 537

Sheet Publish Com IS (R)
A1: CONDENSED CONSOLIDATED STATEMENTS OF COMPREHENSIVE INCOME (RAND)
C7: Six months ended | G7: Year ended
C8: 30 June | D8: 31 December | E8: 30 June | G8: 30 June | I8: 30 June
C9: 2016 | D9: 2015 | E9: 2015 | G9: 2016 | I9: 2015
A10: Figures in million | C10: (Unaudited) | D10: (Unaudited) | E10: (Unaudited) | G10: (Reviewed) | I10: (Audited)
A14: Net profit/(loss) for the period | C14: 1394 | D14: -445 | E14: -3415 | G14: 949 | I14: -4536
A15: Other comprehensive income/(loss) for the period, net of income tax | C15: -329 | D15: 472 | E15: -6 | G15: 143 | H15: 0 | I15: 59
A19: Items that may be reclassified subsequently to profit or loss: | C19: -333 | D19: 472 | E19: -11 | G19: 139 | H19: 0 | I19: 54
A21: Foreign exchange translation gain/(loss) | C21: -333 | D21: 472 | E21: -11 | G21: 139 | I21: 54
A23: Items that will not be reclassified to profit or loss: | C23: 4 | D23: 0 | E23: 5 | G23: 4 | I23: 5
A24: Remeasurement of retirement benefit obligation
A25: Actuarial gain recognised during the year | C25: 3 | D25: 0 | E25: 8 | G25: 3 | I25: 8
A26: Deferred taxation thereon | C26: 1 | D26: 0 | E26: -3 | G26: 1 | I26: -3
A29: Total comprehensive income/(loss) for the period | C29: 1065 | D29: 27 | E29: -3421 | G29: 1092 | I29: -4477
A33: Attributable to:
A34: Owners of the parent | C34: 1065 | D34: 27 | E34: -3421 | G34: 1092 | I34: -4477
A37: The accompanying notes are an integral part of these condensed consolidated financial statements.
A45: CONDENSED CONSOLIDATED STATEMENTS OF CHANGES IN EQUITY (RAND)
A47: for the year ended 30 June 2016
A52: Figures in million | D52: Share capital | E52: Other reserves | G52: Accumulated loss | I52: Total
A55: Balance - 30 June 2015 | D55: 28324 | E55: 3787 | G55: -5358 | I55: 26753
A56: Share-based payments | D56: 0 | E56: 322 | G56: 0 | I56: 322
A57: Reversal of provision for odd lot repurchases | D57: 12 | E57: 0 | G57: 0 | I57: 12
A58: Net profit for the period | D58: 0 | E58: 0 | G58: 949 | I58: 949
A59: Other comprehensive income for the period | D59: 0 | E59: 143 | G59: 0 | I59: 143
A62: Balance - 30 June 2016 (Reviewed) | D62: 28336 | E62: 4252 | G62: -4409 | I62: 28179
A65: Balance - 30 June 2014 | D65: 28325 | E65: 3539 | G65: -822 | I65: 31042
A66: Share-based payments | D66: -1 | E66: 189 | G66: 0 | I66: 188
A67: Net loss for the period | D67: 0 | E67: 0 | G67: -4536 | I67: -4536
A68: Other comprehensive income for the period | D68: 0 | E68: 59 | G68: 0 | I68: 59
A71: Balance - 30 June 2015 (Audited) | D71: 28324 | E71: 3787 | G71: -5358 | I71: 26753
A74: The accompanying notes are an integral part of these condensed consolidated financial statements.
E105: 1
C165: Total diluted earnings

Sheet Publish CIE (R) (hidden)
B1: CONDENSED CONSOLIDATED STATEMENTS OF CHANGES IN EQUITY (RAND)
B3: for the year ended 30 June 2016
B8: Figures in million | E8: Share capital | F8: Other reserves | G8: Accumulated loss | H8: Total
B11: Balance - 30 June 2015 | E11: =E28 -> 28324 | F11: 3787 | G11: -5358 | H11: =SUM(E11:G11) -> 26753
A12: BB210500 | B12: Share-based payments | E12: 0 | F12: =ROUND((ROUND(#REF!,0)-ROUND(#REF!,0))/1000000,0) ->  | G12: 0 | H12: =SUM(E12:G12) -> 
B13: Reversal of provision for odd lot repurchases | E13: 12 | F13: 0 | G13: 0 | H13: =SUM(E13:G13) -> 12
B14: Net profit for the period | E14: 0 | F14: 0 | G14: ='Publish IS (R)'!G49 -> 949 | H14: =SUM(E14:G14) -> 949
B15: Other comprehensive income for the period | E15: 0 | F15: =ROUND('Publish Com IS (R)'!G15,0) -> 143 | G15: 0 | H15: =SUM(E15:F15) -> 143
A16: BB550000 | B16: Dividends paid | E16: 0 | F16: 0 | G16: =ROUND(SUMIF(Cognos_BS_Acc,$A16,Cognos_BS_Amt1)/1000000,0)+1 ->  | H16: =SUM(E16:G16) -> 
A19: BB100000 | B19: Balance - 30 June 2016 (Reviewed) | E19: =SUM(E11:E15) -> 28336 | F19: =SUM(F11:F15) ->  | G19: =SUM(G11:G15) -> -4409 | H19: =ROUND(SUM(H11:H15),0) -> 
B22: Balance - 30 June 2014 | E22: 28325 | F22: 3539 | G22: -822 | H22: =SUM(E22:G22) -> 31042
B23: Share-based payments | E23: -1 | F23: 189 | G23: 0 | H23: =SUM(E23:G23) -> 188
B24: Net loss for the period | E24: 0 | F24: 0 | G24: -4536 | H24: -4536
B25: Other comprehensive income for the period | E25: 0 | F25: 59 | G25: 0 | H25: 59
B28: Balance - 30 June 2015 (Audited) | E28: =SUM(E22:E25) -> 28324 | F28: =SUM(F22:F25) -> 3787 | G28: =SUM(G22:G25) -> -5358 | H28: =SUM(H22:H25) -> 26753
B31: The accompanying notes are an integral part of these condensed consolidated financial statements.
F60: =ROUND(SUMIF(#REF!,$A60,#REF!)/1000000,0) -> 
M403: 245
M404: 491
N406: 537

Sheet Publish BS (R)
A1: CONDENSED CONSOLIDATED BALANCE SHEETS (RAND)
D6: At | E6: At | F6: At
D7: 30 June | E7: 31 December | F7: 30 June
D8: 2016 | E8: 2015 | F8: 2015
A9: Figures in million | C9: Note | D9: (Reviewed) | E9: (Unaudited) | F9: (Audited)
A12: ASSETS
A14: Non-current assets
A16: Property, plant and equipment | C16: 6 | D16: 29919 | E16: 30101 | F16: 29548 | G16: 89568
A17: Intangible assets | D17: 870 | E17: 878 | F17: 885 | G17: 2633
A18: Restricted cash | D18: 62 | E18: 55 | F18: 48 | G18: 165
A19: Restricted investments | D19: 2496 | E19: 2434 | F19: 2384 | G19: 7314
A20: Investments in associates | C20: 7 | D20: 0 | E20: 10 | F20: 0
A21: Investments in financial assets | D21: 5 | E21: 5 | F21: 5
A22: Inventories | D22: 37 | E22: 36 | F22: 36 | G22: 109
A23: Other non-current receivables | C23: 12 | D23: 172 | E23: 74 | F23: 80 | G23: 326
F24: 0
F25: 0
A26: Total non-current assets | D26: 33561 | E26: 33593 | F26: 32986
F27: 0
F28: 0
A30: Current assets
F31: 0
A32: Inventories | D32: 1167 | E32: 1260 | F32: 1292
A33: Trade and other receivables | C33: 7 | D33: 654 | E33: 658 | F33: 746
A34: Income and mining taxes | C34: 4 | D34: 6 | E34: 11 | F34: 30 | G34: 47
A35: Derivative financial assets | C35: 3 | D35: 369 | E35: 0 | F35: 0
A36: Restricted cash | D36: 17 | E36: 16 | F36: 16
A37: Cash and cash equivalents | D37: 1256 | E37: 876 | F37: 1067 | G37: 3199
F38: 0
A40: Total current assets | D40: 3469 | E40: 2821 | F40: 3151
F42: 0
A43: Total assets | D43: 37030 | E43: 36414 | F43: 36137
F44: 0
A47: EQUITY AND LIABILITIES
A49: Share capital and reserves
F50: 0
A51: Share capital | D51: 28336 | E51: 28324 | F51: 28324
A52: Other reserves | D52: 4252 | E52: 4358 | F52: 3787 | G52: 12397
A53: Accumulated loss | D53: -4409 | E53: -5803 | F53: -5358 | G53: -15570
F54: 0
F55: 0
A56: Total equity | D56: 28179 | E56: 26879 | F56: 26753
F57: 0
F58: 0
A60: Non-current liabilities
F61: 0
A62: Deferred tax liabilities | D62: 2413 | E62: 1926 | F62: 1906
A63: Provision for environmental rehabilitation | D63: 2183 | E63: 2364 | F63: 2218 | G63: 6765
A64: Retirement benefit obligation | D64: 169 | E64: 170 | F64: 163 | G64: 502
A65: Other non-current liabilities | D65: 16 | E65: 41 | F65: 37
A66: Borrowings | C66: 8 | D66: 2039 | E66: 3092 | F66: 3399 | G66: 8530
F67: 0
F68: 0
A69: Total non-current liabilities | D69: 6820 | E69: 7593 | F69: 7723
F70: 0
F71: 0
A73: Current liabilities
F74: 0
A75: Borrowings | C75: 8 | D75: 300 | E75: 299 | F75: 0 | G75: 599
A76: Income and mining taxes | C76: 4 | D76: 40 | E76: 1 | F76: 1 | G76: 42
A77: Trade and other payables | D77: 1691 | E77: 1642 | F77: 1660 | G77: 4993
F78: 0
F79: 0 | G79: 0
D80: 2031 | E80: 1942 | F80: 1661 | G80: 0
F81: 0 | G81: 0
F82: 0
A83: Total current liabilities | D83: 2031 | E83: 1942 | F83: 1661
F84: 0
F85: 0
A86: Total equity and liabilities | D86: 37030 | E86: 36414 | F86: 36137
A89: The accompanying notes are an integral part of these condensed consolidated financial statements.
D91: 0 | E91: 0 | F91: 0

Sheet Cash Flow Statement
A1: CONDENSED CONSOLIDATED CASH FLOW STATEMENTS (RAND)
E6: Six months ended | I6: Year ended
E7: 30 June | F7: 31 December | G7: 30 June | I7: 30 June | J7: 30 June
E8: 2016 | F8: 2015 | G8: 2015 | I8: 2016 | J8: 2015
A9: Figures in million | D9: Note | E9: (Unaudited) | F9: (Unaudited) | G9: (Unaudited) | I9: (Reviewed) | J9: (Audited)
A13: Cash flow from operating activities
A14: Cash generated by operations | E14: 2923 | F14: 1736 | G14: 921 | I14: 4659 | J14: 1928
A15: Interest and dividends received | E15: 27 | F15: 47 | G15: 46 | I15: 74 | J15: 101
A16: Interest paid | E16: -116 | F16: -39 | G16: -62 | I16: -155 | J16: -108
A17: Income and mining taxes (paid)/refunded | E17: -83 | F17: 18 | G17: 21 | I17: -65 | J17: 85
J18: 0
J19: 0
A20: Cash generated by operating activities | E20: 2751 | F20: 1762 | G20: 926 | I20: 4513 | J20: 2006
J21: 0
J22: 0
A23: Cash flow from investing activities
A24: (Increase)/decrease in restricted cash | E24: -5 | F24: -7 | G24: 8 | I24: -12 | J24: 8
A25: Decrease in restricted investments | E25: 36 | F25: 3 | G25: 30 | I25: 39 | J25: 31
A26: (Increase)/decrease in loan to associate | E26: 0 | F26: 7 | G26: 0 | I26: 7 | J26: -120
A27: Loan to ARM BBEE Trust | D27: 12 | E27: -200 | F27: 0 | G27: 0 | I27: -200 | J27: 0
A28: Net additions to property, plant and equipment | D28: 10 | E28: -1265 | F28: -1168 | G28: -1428 | I28: -2433 | J28: -2827
J29: 0
J30: 0
A31: Cash utilised by investing activities | E31: -1434 | F31: -1165 | G31: -1390 | I31: -2599 | J31: -2908
J32: 0
J33: 0
A34: Cash flow from financing activities
A35: Borrowings raised | D35: 8 | E35: 0 | F35: 300 | G35: 941 | I35: 300 | J35: 941
A36: Borrowings repaid | D36: 8 | E36: -928 | F36: -1117 | G36: -793 | I36: -2045 | J36: -793
J37: 0
J38: 0
A39: Cash generated/(utilised) by financing activities | E39: -928 | F39: -817 | G39: 148 | I39: -1745 | J39: 148
J40: 0
J41: 0
A42: Foreign currency translation adjustments | E42: -9 | F42: 29 | G42: 9 | I42: 20 | J42: -8
J44: 0
A45: Net increase/(decrease) in cash and cash equivalents | E45: 380 | F45: -191 | G45: -307 | I45: 189 | J45: -762
A46: Cash and cash equivalents - beginning of period | E46: 876 | F46: 1067 | G46: 1374 | I46: 1067 | J46: 1829
J47: 0
J48: 0
A49: Cash and cash equivalents - end of period | E49: 1256 | F49: 876 | G49: 1067 | I49: 1256 | J49: 1067
A53: The accompanying notes are an integral part of these condensed consolidated financial statements.

Sheet Publish - Notes to result
A1: NOTES TO THE CONDENSED CONSOLIDATED FINANCIAL STATEMENTS
A3: for the year ended 30 June 2016 (Rand)
A6: 1 | B6: Accounting policies
B8: Basis of accounting
B9: The condensed consolidated financial statements for the year ended 30 June 2016 are prepared in accordance with the requirements of the JSE Limited Listings Requirements for provisional reports and the requirements of the Companies Act of South Africa. The Listings Requirements require provisional reports to be prepared in accordance with the framework concepts and the measurement and recognition requirements of International Financial Reporting Standards (IFRS) as issued by the International Accounting Standards Board (IASB) and the SAICA Financial Reporting Guides as issued by the Accounting Practices Committee and Financial Pronouncements as issued by the Financial Reporting Standards Council and to also, as a minimum, contain the information required by IAS 34 Interim Financial Reporting. The accounting policies applied in the preparation of the condensed consolidated financial statements are in terms of IFRS and are consistent with those applied in the previous consolidated annual financial statements.
A18: 2 | B18: Cost of sales
J20: Six months ended | N20: Year ended
J21: 30 June | K21: 31 December | L21: 30 June | N21: 30 June | O21: 30 June
J22: 2016 | K22: 2015 | L22: 2015 | N22: 2016 | O22: 2015
B23: Figures in million | J23: (Unaudited) | K23: (Unaudited) | L23: (Unaudited) | N23: (Reviewed) | O23: (Audited)
B26: Production costs - excluding royalty | J26: 6427 | K26: 6652 | L26: 5976 | N26: 13079 | O26: 12537
B27: Royalty expense | J27: 108 | K27: 63 | L27: 42 | N27: 171 | O27: 95
B28: Amortisation and depreciation | J28: 1084 | K28: 1086 | L28: 1220 | N28: 2170 | O28: 2472
B29: (Reversal of impairment)/impairment of assets1 | J29: -43 | K29: 0 | L29: 3471 | N29: -43 | O29: 3471
B30: Rehabilitation expenditure/(credit)2 | J30: -69 | K30: 28 | L30: -26 | N30: -41 | O30: -6
B31: Care and maintenance cost of restructured shafts | J31: 56 | K31: 58 | L31: 69 | N31: 114 | O31: 106
B32: Employment termination and restructuring costs | J32: 1 | K32: 15 | L32: 21 | N32: 16 | O32: 251
B33: Share-based payments3 | J33: 224 | K33: 105 | L33: 68 | N33: 329 | O33: 208
B34: Other | J34: -8 | K34: -1 | L34: -81 | N34: -9 | O34: -81
B37: Total cost of sales | J37: 7780 | K37: 8006 | L37: 10760 | N37: 15786 | O37: 19053
B40: 1 | C40: The net reversal of impairment of long-lived assets in the June 2016 period consists of a reversal of impairment of R738 million on Doornkop, offset by an impairment of R466 million on Hidden Valley and R229 million on Masimong. The June 2015 impairment consists of an impairment of R2.11 billion on Hidden Valley, R1.04 billion on Doornkop, R278 million on Phakisa and R43 million on Freddies 9. Refer to note 6 for further details.
B43: 2 | C43: Included in the total for the June 2016 period is a credit of R110 million relating to the change in estimate following the annual reassessment.
B44: 3 | C44: Due to the low share price at the time of the awarding of performance shares (PS) for 2015, a large number of PS were allocated to employees. The increase in the share price between the award date and the approval date resulted in an increase in the IFRS 2 Share-based payment fair value per award measurement.
A48: 3 | B48: Foreign exchange translation gain/(loss)
J50: Six months ended | N50: Year ended
J51: 30 June | K51: 31 December | L51: 30 June | N51: 30 June | O51: 30 June
J52: 2016 | K52: 2015 | L52: 2015 | N52: 2016 | O52: 2015
B53: Figures in million | J53: (Unaudited) | K53: (Unaudited) | L53: (Unaudited) | N53: (Reviewed) | O53: (Audited)
B56: Translation gain/(loss) on US$ revolving credit facility (a) | J56: 135 | K56: -800 | L56: -122 | N56: -665 | O56: -382
B58: Unrealised derivative gain (b) | J58: 369 | K58: 0 | L58: 0 | N58: 369 | O58: 0
B59: Realised derivative gain (b) | J59: 77 | K59: 0 | L59: 0 | N59: 77 | O59: 0
B60: Other | J60: 25 | K60: 2 | L60: -3 | N60: 27 | O60: 15
B63: Total foreign exchange translation gain/(loss) | J63: 606 | K63: -798 | L63: -125 | N63: -192 | O63: -367
B66: Rand/US$ exchange rate:
B67: Closing/spot at | J67: 14.72 | K67: 15.62 | L67: 12.16 | N67: 14.72 | O67: 12.16
B68: Average | J68: 15.39 | K68: 13.62 | L68: 11.91 | N68: 14.5 | O68: 11.45
B70: a) | C70: Refer to note 8 for details on the US$ revolving credit facility.
B71: b) | C71: During February 2016, Harmony entered into foreign exchange hedging contracts (forex hedging contracts) in the form of zero cost collars, which establish a minimum (floor) and maximum (cap) Rand/US Dollar exchange rate at which to convert US dollars to Rands. The nominal value of open forex hedging contracts at 30 June 2016 is US$500 million. The hedging contracts are spread over a 12 month period with a weighted average cap price of US$1=R18.27 and weighted average floor price of US$1=R15.55. The mark-to-market of the derivative asset is R369 million as at 30 June 2016 due to the strengthening of the Rand exchange rate against the US dollar since the conclusion of the forex hedging contracts. As we do not apply hedge accounting, the gains have been recorded in the income statement.
A80: 4 | B80: Taxation
B82: Normal taxation expense increased during the year ended 30 June 2016 due to the increased profitability at most of the South African operations and the inclusion of the unrealised derivative gain of R369 million in determining taxable income.
B85: The deferred tax expense increased during 2016 due to the net increase in the deferred tax rates year on year and utilisation of assessed losses and unredeemed capital by the South African companies. The weighted average deferred tax rates for most South African companies increased as a result of increased forecast profitability of these operations.
A89: 5 | B89: Earnings/(loss) per share
J91: Six months ended | N91: Year ended
J92: 30 June | K92: 31 December | L92: 30 June | N92: 30 June | O92: 30 June
J93: 2016 | K93: 2015 | L93: 2015 | N93: 2016 | O93: 2015
J94: (Unaudited) | K94: (Unaudited) | L94: (Unaudited) | N94: (Reviewed) | O94: (Audited)
B97: Weighted average number of shares (million) | J97: 436.2954327 | K97: 435.2 | L97: 434.7 | N97: 435.7 | O97: 434.4
B98: Weighted average number of diluted shares (million) | J98: 455.8855189 | K98: 436.9 | L98: 438.6 | N98: 446.4 | O98: 438.1
B99: Total earnings/(loss) per share (cents):
B101: Basic earnings/(loss) | J101: 320 | K101: -102 | L101: -786 | N101: 218 | O101: -1044
B102: Diluted earnings/(loss) | J102: 306 | K102: -102 | L102: -786 | N102: 213 | O102: -1044
B103: Headline earnings/(loss) | J103: 324 | K103: -103 | L103: -16 | N103: 221.3387491 | O103: -189
B104: Diluted headline earnings/(loss) | J104: 310 | K104: -103 | L104: -16 | N104: 216.0333624 | O104: -189
B107: Figures in million
B109: Reconciliation of headline earnings/(loss):
B111: Net profit/(loss) | J111: 1394 | K111: -445 | L111: -3415 | N111: 949 | O111: -4536
B112: Adjusted for:
B113: Profit on disposal of investments1 | J113: 0 | K113: 0 | L113: -4 | N113: 0 | O113: -4
B114: Reversal of impairment/(impairment) of assets | J114: -42.633681 | K114: 0 | L114: 3471 | N114: -42.633681 | O114: 3471
B115: Taxation effect on reversal of impairment/(impairment) of assets | J115: 12.00661079 | K115: 0 | L115: -169 | N115: 12.00661079 | O115: -169
B117: Profit on sale of property, plant and equipment | J117: -3 | K117: -4 | L117: -5 | N117: -7 | O117: -6
B118: Taxation effect on profit on sale of property, plant and equipment | J118: 0 | K118: 0 | L118: -1 | N118: 1 | O118: -1
B120: Loss on scrapping of property, plant and equipment | J120: 64 | K120: 0 | L120: 61 | N120: 64 | O120: 491
B121: Taxation effect on loss on scrapping of property, plant and equipment | J121: -12 | K121: 0 | L121: -9 | N121: -12 | O121: -67
B125: Headline earnings/(loss) | J125: 1412.37293 | K125: -449 | L125: -71 | N125: 964.3729298 | O125: -821
B128: 1 There is no taxation effect on this item.
A130: 6 | B130: Property, plant and equipment
B132: (a) | C132: Impairment/reversal of impairment
C134: One of the most significant assumptions that influence the Group's operations' life-of-mine plans and therefore impairment is the expected gold price. During this year's planning and testing, commodity price and exchange rate assumptions as per the table below were used. Post-tax real discount rates ranging between 8.43% and 11.77% (2015: 7.99% and 12.03%), depending on the asset, were used to determine the recoverable amounts (generally fair value less costs to sell).
O139: 2017 onwards
B142: US$ gold price ($/ounce) | O142: 1189
B143: US$ silver price ($/ounce) | O143: 17.8
B144: Exchange rate (R/US$) | O144: 13.86
B145: Exchange rate (PGK/US$) | O145: 3.1
B146: Rand gold price (R/Kg) | O146: 530000
C149: For South African operations, values of US$40.86, US$23.35 and US$5.84 per ounce were used for measured, indicated and inferred resources, respectively. For Hidden Valley, US$5.84 per ounce was used for indicated and inferred resources.
C156: The annual impairment assessment performed resulted in a net reversal of impairment of R43 million for the 2016 financial year.
B157: • | C157: A reversal of R738 million was recorded for Doornkop mainly due to the increased Rand gold price assumption, improvements in operational efficiencies following the restructuring in 2015 and new areas included in the life-of-mine plan based on additional exploration performed during 2016. The recoverable amount is R2.8 billion.
B160: • | C160: An impairment of R466 million was recorded for Hidden Valley. The updated life-of-mine plan for Hidden Valley results in lower production in 2017 as the mine undergoes processing of ore stockpiles and a period of care and maintenance, with stripping activities for stage 5 planned to recommence in the 2018 financial year. The recoverable amount is R319 million (US$21.7 million).
B163: • | C163: An impairment of R229 million was recorded for Masimong which has a remaining life of mine of three years. The exploration programme to find additional areas of the higher grade B Reef proved unsuccessful and was stopped during 2016. In addition, the grade estimation of the Basal Reef decreased and as a result a portion of the resource was abandoned at 30 June 2016. The recoverable amount is R472 million.
C168: The recoverable amounts for these assets were determined on a fair value less costs to sell basis using the assumptions above in discounted cash flow models and attributable resource values. These are fair value measurements classified as level 3.
C171: The sensitivity scenario of a 10% decrease in the commodity price used in the discounted cash flow models and the resource values used (with all other variables held constant) would have resulted in an additional impairment at Hidden Valley of R319 million and Masimong of R281 million. The decreases noted would have resulted in impairments at Unisel of R162 million, Free State surface assets of R141 million, Other Harmony assets of R46 million and Doornkop of R15 million (as opposed to the reversal recorded of R738 million).
B177: (b) | C177: Loss on scrapping of property, plant and equipment
C179: At 30 June 2016, following the annual life-of-mine planning, an amount of R64 million (2015: R491 million) was recorded for various operations as a result of the abandonment of uneconomical areas in the life-of-mine plans of those operations. The abandonment of unprofitable areas in the plans resulted in the derecognition of property, plant and equipment as no future economic benefits are expected from their use or disposal. For June 2015, the scrapping loss recorded mainly related to the life-of-mine optimisation process finalised in December 2014 which resulted in the abandoning of shaft levels and raise lines at Kusasalethu and Masimong.
A185: 7 | B185: Investment in associate
B187: Harmony's gross portion of the subordinated shareholders' loan extended to Rand Refinery Proprietary Limited (Rand Refinery) in December 2014 amounts to R120 million. This loan forms part of the net investment in associate. At 30 June 2016, Harmony set off its share of profits from associate of R7 million against its share of losses of R25 million recorded against the loan in 2015, as well as an additional provision for impairment of R25 million (2015: R15 million). The recoverable amount of the loan at 30 June 2016 is R62 million (2015: R80 million). The fair value measurement of the net investment is classified as level 3 and is non-recurring. The loan is due in December 2016 and has been included in Other receivables - current.
A194: 8 | B194: Borrowings
B196: During the 2016 financial year R300 million and R400 million was raised and repaid respectively on the R1.3 billion Nedbank revolving credit facility. US$110 million (R1 645 million) was repaid on the US$ revolving credit facility. Refer to note 3 for details on the foreign exchange translation movement.
N200: US$ facility | O200: Rand facility
B201: Figures in million | N201: US dollar | O201: SA rand
B203: Borrowings summary at 30 June 2016
B204: Facility | N204: 250 | O204: 1300
B205: Drawn down | N205: 140 | O205: 300
B206: Undrawn committed borrowing facilities | N206: 110 | O206: 1000
B207: Maturity | N207: February | O207: December 2016
N208: 2018
B209: Interest rate | N209: LIBOR + 3% | O209: JIBAR + 3.5%
B212: At 30 June 2016, the drawn amount of R300 million on the Nedbank facility is repayable within 12 months and has been reclassified as current. Refer to note 13 for events after reporting date.
A219: 9 | B219: Financial risk management activities
B221: Fair value determination
B223: The fair value levels of hierarchy are as follows:
B226: Level 1: | G226: Quoted prices (unadjusted) in active markets for identical assets;
B227: Level 2: | G227: Inputs other than quoted prices included within level 1 that are observable for the asset, either directly or indirectly (that is, as prices) or indirectly (that is derived from prices);
B229: Level 3: | G229: Inputs for the asset that are not based on observable market data (that is unobservable inputs).
B231: The following table presents the group's assets and liabilities that are measured at fair value at reporting date:
K233: Fair value hierarchy level | L233: At 30 June 2016 | N233: At 31 December 2015 | O233: At 30 June 2015
B237: Available-for-sale financial assets
B238: Investment in financial assets1 | K238: Level 3 | L238: 5 | N238: 5 | O238: 5
B239: Fair value through profit or loss
B240: Restricted investments2 | K240: Level 2 | L240: 640 | N240: 614 | O240: 538
B241: Derivative assets3 | K241: Level 2 | L241: 369 | N241: 0 | O241: 0
B244: 1 | C244: Level 3 fair values have been valued by the directors by performing independent valuations on an annual basis.
B245: 2 | C245: The majority of the level 2 fair values are directly derived from the Top 40 index on the JSE, and are discounted at market interest rate. This relates to equity-linked deposits in the group's environmental rehabilitation trust funds.
B247: 3 | C247: The mark-to-market remeasurement of the forex hedging contracts (zero cost collars) is derived from a Black-Scholes valuation technique, derived from spot Rand/US$ exchange rate inputs and discounted at market interest rate.
B249: For all other financial instruments, fair value approximates carrying value.
A251: 10 | B251: Net additions to property, plant and equipment
J253: Six months ended | N253: Year ended
J254: 30 June | K254: 31 December | L254: 30 June | N254: 30 June | O254: 30 June
J255: 2016 | K255: 2015 | L255: 2015 | N255: 2016 | O255: 2015
B256: Figures in million | J256: (Unaudited) | K256: (Unaudited) | L256: (Unaudited) | N256: (Reviewed) | O256: (Audited)
B259: Capital expenditure - operations | J259: 1125 | K259: 1027 | L259: 1191 | N259: 2152 | O259: 2470
B260: Capital and capitalised exploration and evaluation expenditure for Golpu | J260: 125.5395667 | K260: 114 | L260: 105 | N260: 240 | O260: 119
B262: Additions resulting from stripping activities at Hidden Valley | J262: 14.4103981 | K262: 28 | L262: 138 | N262: 42.48690551 | O262: 236
B264: Other | J264: 0 | K264: -1 | L264: -6 | N264: -1 | O264: 2
B267: Net additions | J267: 1265 | K267: 1168 | L267: 1428 | N267: 2433 | O267: 2827
A270: 11 | B270: Commitments and contingencies
L272: At | N272: At | O272: At
L273: 30 June | N273: 31 December | O273: 30 June
L274: 2016 | N274: 2015 | O274: 2015
B275: Figures in million | L275: (Reviewed) | N275: (Unaudited) | O275: (Audited)
B278: Capital expenditure commitments:
B279: Contracts for capital expenditure | L279: 264 | N279: 166 | O279: 158
B280: Authorised by the directors but not contracted for | L280: 516 | N280: 1607 | O280: 257
L282: xx
L283: 780 | N283: 1773 | O283: 415
B286: This expenditure will be financed from existing resources and, where appropriate, borrowings.
B293: Contingent liabilities
B295: For a detailed disclosure on contingent liabilities refer to Harmony's annual financial statements for the financial year ended 30 June 2015. Other than discussed below, there were no significant changes in contingencies since 30 June 2015.
B298: (a) | C298: Silicosis
C300: On 13 May 2016, the Johannesburg High Court ordered the certification of a silicosis class and a tuberculosis (TB) class, which are to proceed as a single class against the mining companies acted in the application. The companies requested leave to appeal to the Supreme Court of Appeal (SCA), which was granted on 24 June 2016. Harmony submitted its notice of appeal in respect of the transmissibility of the general damages order on 22 July 2016.
C305: Due to the limited information available on the above claim and potential other claims, and the uncertainty of the outcome of the matter, no costs estimation can as yet be made for the possible obligation.
A308: 12 | B308: Related parties
B310: Key management personnel are those persons having authority and responsibility for planning, directing and controlling the activities of the group, directly or indirectly, including any director (whether executive or otherwise) of the group.
B313: (a) | C313: Movement in shares owned by directors/prescribed officers for the year ended 30 June 2016:
B316: Name of director/prescribed officer | L316: Shares purchased in open market | N316: Shares sold in open market | O316: Performance shares vested and retained
B319: Frank Abbott (Financial director) 1 | L319: 300000 | N319: 0 | O319: 18547
B320: Graham Briggs (Chief executive officer) 2 | L320: 0 | N320: 0 | O320: 46874
B321: Harry "Mashego" Mashego (Executive director) 3 | L321: 0 | N321: 10000 | O321: 7760
B322: Ken Dicks (Independent non-executive director) 4 | L322: 15000 | N322: 0 | O322: n/a
B323: Johannes van Heerden5 | L323: 0 | N323: 41337 | O323: 13153
B326: 1 Purchased on 15 December 2015.
B327: 2 Graham Briggs retired on 31 December 2015.
B328: 3 Sold on 23 March 2016.
B329: 4 Purchased on 8 December 2015.
B330: 5 Sold in several tranches during 2016.
B332: (b) | C332: During July 2015, Harmony signed a R150 million guarantee for the ARM Broad Based Economic Empowerment (BBEE) Trust (the Trust), shareholder of the African Rainbow Minerals Limited. The guarantee was for additional security for the Trust's loan due to Nedbank Limited. The guarantee was subsequently cancelled in April 2016 after Harmony advanced R200 million to the Trust as part of the restructuring and refinancing of the Trust’s bank debt. The loan is subordinated and unsecured. The interest rate is market related (3 month JIBAR plus 4.25%) and is receivable on the maturity of the loan on 31 December 2022. At 30 June 2016, the loan to the Trust was tested for impairment and a provision for impairment of R33 million was required. This impairment is included in “Other expenses (net)” in the income statement. The recoverable amount on the Trust loan at 30 June 2016 is R172 million and is recorded in Other non-current receivable in the balance sheet. The fair value measurement is classified as level 3 and is non-recurring.
A341: 13 | B341: Subsequent events
B343: a) | C343: On 7 July 2016, Harmony repaid the remaining R300 million outstanding on the R1.3 billion Nedbank ZAR facility.
B344: b) | C344: During July 2016, Harmony entered into short term gold forward sale contracts for a total of 432 000 ounces over a period of 24 months. These contracts create cash certainty for approximately 20% of the Group’s total production at an average gold price of R682 000/kg. We will be applying cash flow hedge accounting to these contracts.
B347: c) | C347: On 15 August 2016, the board declared a dividend of 50 SA cents for the year ended 30 June 2016, payable on 19 September 2016.
A349: 14 | B349: Segment report
B351: The segment report follows below.
A362: 15 | B362: Reconciliation of segment information to condensed consolidated income statements and balance sheets
N364: Year ended
N365: 30 June | O365: 30 June
N366: 2016 | O366: 2015
B367: Figures in million | N367: (Reviewed) | O367: (Audited)
B370: The "Reconciliation of segment information to condensed consolidated financial statements" line item in the segment report is broken down in the following elements, to give a better understanding of the differences between the financial statements and segment report:
B374: Reconciliation of production profit to gross profit
B376: Total segment revenue | N376: 18334 | O376: 15435
B377: Total segment production costs | N377: -13250 | O377: -12632
B380: Production profit per segment report | N380: 5084 | O380: 2803
B381: Depreciation | N381: -2170 | O381: -2472
B382: Reversal of impairment/(impairment) of assets | N382: 43 | O382: -3471
B383: Other cost of sales items | N383: -409 | O383: -478
B386: Gross profit/(loss) as per income statements1 | N386: 2548 | O386: -3618
B388: 1The reconciliation was done up to the first recognisable line item on the income statement. The reconciliation will follow the income statement after that.
N390: At | O390: At
N391: 30 June | O391: 30 June
N392: 2016 | O392: 2015
B393: Figures in million | N393: (Reviewed) | O393: (Audited)
B396: Reconciliation of total segment mining assets to consolidated property, plant and equipment
B397: Property, plant and equipment not allocated to a segment
B398: Mining assets | N398: 657 | O398: 762
B399: Undeveloped property | N399: 5139 | O399: 5139
B400: Other non-mining assets | N400: 168 | O400: 199
B401: Wafi-Golpu assets | N401: 1785 | O401: 1188
N403: 7749 | O403: 7288
A406: 16 | B406: Review report
B408: These condensed consolidated financial statements for the year ended 30 June 2016 have been reviewed by PricewaterhouseCoopers Inc., who expressed an unmodified review conclusion thereon. A copy of the auditor's review report is available for inspection at the company's registered office, together with the financial statements identified in the auditor's report.

Sheet Segment Report (R)
A1: SEGMENT REPORT (RAND/METRIC)
A2: for the year ended 30 June 2016
B5: Revenue 30 June | D5: Production cost 30 June | F5: Production profit/(loss) 30 June | H5: Mining assets 30 June | J5: Capital expenditure# 30 June | L5: Kilograms produced@ 30 June | N5: Tonnes milled@ 30 June
B6: 2016 | C6: 2015 | D6: 2016 | E6: 2015 | F6: 2016 | G6: 2015 | H6: 2016 | I6: 2015 | J6: 2016 | K6: 2015 | L6: 2016 | M6: 2015 | N6: 2016 | O6: 2015
B7: R million | D7: R million | F7: R million | H7: R million | J7: R million | L7: kg | N7: t'000
A10: South Africa
A11: Underground
A12: Kusasalethu | B12: 2078 | C12: 1939 | D12: 1816 | E12: 1996 | F12: 262 | G12: -57 | H12: 3766 | I12: 3619 | J12: 360 | K12: 463 | L12: 3863 | M12: 3953 | N12: 668 | O12: 908
A13: Doornkop | B13: 1480 | C13: 1220 | D13: 1047 | E13: 1092 | F13: 433 | G13: 128 | H13: 2984 | I13: 2239 | J13: 208 | K13: 245 | L13: 2730 | M13: 2663 | N13: 630 | O13: 603
A14: Phakisa | B14: 2186 | C14: 1420 | D14: 1375 | E14: 1181 | F14: 811 | G14: 239 | H14: 4246 | I14: 4307 | J14: 323 | K14: 403 | L14: 3988 | M14: 3118 | N14: 686 | O14: 611
A15: Tshepong | B15: 2756 | C15: 1948 | D15: 1844 | E15: 1611 | F15: 912 | G15: 337 | H15: 4161 | I15: 4025 | J15: 307 | K15: 313 | L15: 5031 | M15: 4278 | N15: 1088 | O15: 992
A16: Masimong | B16: 1318 | C16: 1118 | D16: 1038 | E16: 992 | F16: 280 | G16: 126 | H16: 485 | I16: 893 | J16: 110 | K16: 166 | L16: 2432 | M16: 2463 | N16: 650 | O16: 670
A17: Target 1 | B17: 1833 | C17: 1738 | D17: 1250 | E17: 1191 | F17: 583 | G17: 547 | H17: 2826 | I17: 2782 | J17: 322 | K17: 296 | L17: 3387 | M17: 3824 | N17: 739 | O17: 749
A18: Bambanani | B18: 1617 | C18: 1330 | D18: 811 | E18: 705 | F18: 806 | G18: 625 | H18: 807 | I18: 821 | J18: 106 | K18: 110 | L18: 3013 | M18: 2908 | N18: 232 | O18: 229
A19: Joel | B19: 1220 | C19: 1046 | D19: 831 | E19: 770 | F19: 389 | G19: 276 | H19: 728 | I19: 578 | J19: 215 | K19: 182 | L19: 2278 | M19: 2258 | N19: 542 | O19: 551
A20: Unisel | B20: 925 | C20: 770 | D20: 754 | E20: 682 | F20: 171 | G20: 88 | H20: 543 | I20: 594 | J20: 62 | K20: 99 | L20: 1704 | M20: 1695 | N20: 424 | O20: 417
A21: Target 3(a) | B21: 0 | C21: 222 | D21: 0 | E21: 177 | F21: 0 | G21: 45 | H21: 526 | I21: 535 | J21: 0 | K21: 20 | L21: 0 | M21: 483 | N21: 0 | O21: 90
A23: Surface
A24: All other surface operations | B24: 1601 | C24: 1338 | D24: 1272 | E24: 1092 | F24: 329 | G24: 246 | H24: 448 | I24: 483 | J24: 59 | K24: 51 | L24: 2972 | M24: 2927 | N24: 10985 | O24: 10418
A27: Total South Africa | B27: 17014 | C27: 14089 | D27: 12038 | E27: 11489 | F27: 4976 | G27: 2600 | H27: 21520 | I27: 20876 | J27: 2072 | K27: 2348 | L27: 31398 | M27: 30570 | N27: 16644 | O27: 16238
A30: International
A31: Hidden Valley | B31: 1320 | C31: 1346 | D31: 1212 | E31: 1143 | F31: 108 | G31: 203 | H31: 650 | I31: 1384 | J31: 79 | K31: 121 | L31: 2257 | M31: 2943 | N31: 1729 | O31: 1825
A34: Total international | B34: 1320 | C34: 1346 | D34: 1212 | E34: 1143 | F34: 108 | G34: 203 | H34: 650 | I34: 1384 | J34: 79 | K34: 121 | L34: 2257 | M34: 2943 | N34: 1729 | O34: 1825
A37: Total operations | B37: 18334 | C37: 15435 | D37: 13250 | E37: 12632 | F37: 5084 | G37: 2803 | H37: 22170 | I37: 22260 | J37: 2151 | K37: 2469 | L37: 33655 | M37: 33513 | N37: 18373 | O37: 18063
A39: Reconciliation of the segment information to the condensed consolidated financial statements (refer to note 15)
B43: 0 | C43: 0 | D43: 0 | E43: 0 | H43: 7749 | I43: 7288
B46: 18334 | C46: 15435 | D46: 13250 | E46: 12632 | H46: 29919 | I46: 29548
A49: # Capital expenditure for international operations excludes expenditure spend on Wafi-Golpu of R240 million (2015: R119 million).
A50: ⁽ᵃ⁾ Target 3 was placed on care and maintenance in October 2014.
A51: @ Production statistics are unaudited and not reviewed.
A53: The segment report for the year ended 30 June 2015 has been audited. The segment report for the year ended 30 June 2016 has been reviewed.

Sheet Publish IS (US$)
A1: CONDENSED CONSOLIDATED INCOME STATEMENTS (US$)
A2: (Convenience translation)
C7: Six months ended | G7: Year ended
C8: 30 June | D8: 31 December | E8: 30 June | G8: 30 June | H8: 30 June
C9: 2016 | D9: 2015 | E9: 2015 | G9: 2016 | H9: 2015
A10: Figures in million | C10: (Unaudited) | D10: (Unaudited) | E10: (Unaudited) | G10: (Unaudited) | H10: (Audited)
A13: Revenue | C13: 625 | D13: 639 | E13: 612 | G13: 1264 | H13: 1348
A14: Cost of sales | C14: -505 | D14: -588 | E14: -903 | G14: -1090 | H14: -1645
A17: Production costs | C17: -424 | D17: -493 | E17: -505 | G17: -914 | H17: -1103
A18: Amortisation and depreciation | C18: -70 | D18: -80 | E18: -102 | G18: -150 | H18: -216
A19: Reversal of impairment/(impairment) of assets | C19: 3 | D19: 0 | E19: -291 | G19: 3 | H19: -285
A20: Other items | C20: -14 | D20: -15 | E20: -5 | G20: -29 | H20: -41
A23: Gross profit/(loss) | C23: 120 | D23: 51 | E23: -291 | G23: 174 | H23: -297
A24: Corporate, administration and other expenditure | C24: -15 | D24: -13 | E24: -16 | G24: -28 | H24: -33
A25: Social investment expenditure | C25: -2 | D25: -2 | E25: -3 | G25: -4 | H25: -6
A26: Exploration expenditure | C26: -6 | D26: -7 | E26: -7 | G26: -13 | H26: -23
A27: Loss on scrapping of property, plant and equipment | C27: -4 | D27: 0 | E27: -5 | G27: -4 | H27: -42
A28: Foreign exchange translation gain/(loss) | C28: 39 | D28: -59 | E28: -10 | G28: -13 | H28: -32
A29: Other expenses (net) | C29: -2 | D29: -1 | E29: -1 | G29: -3 | H29: 0
A32: Operating profit/(loss) | C32: 130 | D32: -31 | E32: -333 | G32: 109 | H32: -433
A33: Profit/(loss) from associates | C33: -2 | D33: 3 | E33: -2 | G33: 0 | H33: -2
A34: Net gain/(loss) on financial instruments | C34: 2 | D34: -1 | E34: 0 | G34: 1 | H34: 1
A35: Investment income | C35: 8 | D35: 8 | E35: 10 | G35: 17 | H35: 20
A36: Finance cost | C36: -9 | D36: -10 | E36: -11 | G36: -19 | H36: -22
A39: Profit/(loss) before taxation | C39: 129 | D39: -31 | E39: -336 | G39: 108 | H39: -436
A40: Taxation | C40: -40 | D40: -2 | E40: 50 | G40: -44 | H40: 62
A43: Normal taxation | C43: -8 | D43: 0 | E43: 1 | G43: -8 | H43: 0
A44: Deferred taxation | C44: -32 | D44: -2 | E44: 49 | G44: -36 | H44: 62
A47: Net profit/(loss) for the period | C47: 89 | D47: -33 | E47: -286 | G47: 64 | H47: -374
A50: Attributable to:
A51: Owners of the parent | C51: 89 | D51: -33 | E51: -286 | G51: 64 | H51: -374
A54: Earnings/(loss) per ordinary share (cents)
E55: ;
A56: Basic earnings/(loss) | C56: 21 | D56: -7 | E56: -65 | G56: 15 | H56: -86
A57: Diluted earnings/(loss) | C57: 20 | D57: -7 | E57: -65 | G57: 15 | H57: -86
A62: The currency conversion average rates for the six months ended June 2016: US$1 = R15.39 (December 2015: US$1 = R13.62, June 2015: US$1 = R11.91). For year ended: June 2016: US$1 = R14.50 (June 2015: US$1 = R11.45).
A65: The income statement for the year ended 30 June 2015 has been extracted from the 2015 annual financial statements.
A77: Note on convenience translations
A79: Except where specific statements have been extracted from the 2015 annual financial statements, the requirements of IAS 21, The Effects of the Changes in Foreign Exchange Rates, have not necessarily been applied in the translation of the US Dollar financial statements.

Sheet Publish Com IS (US$)
A1: CONDENSED CONSOLIDATED STATEMENTS OF COMPREHENSIVE INCOME (US$)
A3: (Convenience translation)
C8: Six months ended | G8: Year ended
C9: 30 June | D9: 31 December | E9: 30 June | G9: 30 June | I9: 30 June
C10: 2016 | D10: 2015 | E10: 2015 | G10: 2016 | I10: 2015
A11: Figures in million | C11: (Unaudited) | D11: (Unaudited) | E11: (Unaudited) | G11: (Unaudited) | I11: (Audited)
A14: Net profit/(loss) for the period | C14: 89 | D14: -33 | E14: -286 | G14: 64 | I14: -374
A15: Other comprehensive income/(loss) for the period, net of income tax | C15: -22 | D15: 35 | E15: 0 | G15: 10 | I15: -367.3011427
A19: Items that may be reclassified subsequently to profit or loss: | C19: -22 | D19: 35 | E19: -1 | G19: 10 | I19: -368
A21: Foreign exchange translation | C21: -22 | D21: 35 | E21: -1 | G21: 10 | I21: -368
A23: Items that will not be reclassified to profit or loss: | C23: 0 | D23: 0 | E23: 0.6716133227 | G23: 0 | I23: 0.6988573159
A24: Remeasurement of retirement benefit obligation
A25: Acturial gain recognised during the year | C25: 0 | D25: 0 | E25: 0.6716133227 | G25: 0 | I25: 0.6988573159
A26: Deferred taxation thereon | C26: 0 | D26: 0 | E26: 0 | G26: 0 | I26: 0
A29: Total comprehensive income/(loss) for the period | C29: 67 | D29: 2 | E29: -286 | G29: 74 | I29: -741.3011427
A32: Attributable to:
A33: Owners of the parent | C33: 67 | D33: 2 | E33: -286 | G33: 74 | I33: -741.3011427
A37: The currency conversion average rates for the six months ended June 2016: US$1 = R15.39 (December 2015: US$1 = R13.62, June 2015: US$1 = R11.91). For year ended: June 2016: US$1 = R14.50 (June 2015: US$1 = R11.45).
A40: The statement of comprehensive income for the year ended 30 June 2015 has been extracted from the 2015 annual financial statements.
A47: CONDENSED CONSOLIDATED STATEMENTS OF CHANGES IN EQUITY (US$)
A50: for the year ended 30 June 2016 (Convenience translation)
A54: Figures in million | D54: Share capital | E54: Other reserves | G54: Accumulated loss | I54: Total
A57: Balance - 30 June 2015 | D57: 1924 | E57: 257 | G57: -364 | I57: 1817
A58: Share-based payments | D58: 0 | E58: 22 | G58: 0 | I58: 22
A59: Reversal of provision for odd lot repurchases | D59: 1 | E59: 0 | G59: 0 | I59: 1
A60: Net profit for the period | D60: 0 | E60: 0 | G60: 64 | I60: 64
A61: Other comprehensive income for the period | D61: 0 | E61: 10 | G61: 0 | I61: 10
A64: Balance - 30 June 2016 (Unaudited) | D64: 1925 | E64: 289 | G64: -300 | I64: 1914
A66: Balance - 30 June 2014 | D66: 4035 | E66: -887 | G66: -223 | I66: 2925
A67: Share-based payments | D67: 0 | E67: 16 | G67: 0 | I67: 16
A68: Net loss for the period | D68: 0 | E68: 0 | G68: -374 | I68: -374
A69: Other comprehensive income for the period | D69: 0 | E69: -367 | G69: 0 | I69: -367
A72: Balance - 30 June 2015 (Audited) | D72: 4035 | E72: -1238 | G72: -597 | I72: 2200
A75: The currency conversion closing rates for the period ended 30 June 2016: US$1 = R14.72 (June 2015: US$1 = R12.16).
A77: The statement of changes in equity for the year ended 30 June 2015 has been extracted from the 2015 annual financial statements.

Sheet Publish BS (US$)
A1: CONDENSED CONSOLIDATED BALANCE SHEETS (US$)
A2: (Convenience translation)
D7: At | E7: At | F7: At
D8: 30 June | E8: 31 December | F8: 30 June
D9: 2016 | E9: 2015 | F9: 2015
A10: Figures in million | D10: (Unaudited) | E10: (Unaudited) | F10: (Audited)
A13: ASSETS
A15: Non-current assets
A17: Property, plant and equipment | D17: 2033 | E17: 1927 | F17: 2430
A18: Intangible assets | D18: 59 | E18: 56 | F18: 73
A19: Restricted cash | D19: 4 | E19: 4 | F19: 4
A20: Restricted investments | D20: 170 | E20: 156 | F20: 196
A21: Inventories | D21: 3 | E21: 2 | F21: 3
A22: Other non-current receivables | D22: 12 | E22: 5 | F22: 7
A25: Total non-current assets | D25: 2281 | E25: 2150 | F25: 2713
A29: Current assets
A31: Inventories | D31: 79 | E31: 81 | F31: 106
A32: Trade and other receivables | D32: 44 | E32: 42 | F32: 62
A33: Income and mining taxes | D33: 0 | E33: 1 | F33: 2
A34: Derivative financial assets | D34: 25 | E34: 0 | F34: 0
A35: Restricted cash | D35: 1 | E35: 1 | F35: 1
A36: Cash and cash equivalents | D36: 85 | E36: 56 | F36: 88
A39: Total current assets | D39: 234 | E39: 181 | F39: 259
A42: Total assets | D42: 2515 | E42: 2331 | F42: 2972
A46: EQUITY AND LIABILITIES
A48: Share capital and reserves
A50: Share capital | D50: 1925 | E50: 1813 | F50: 4035
A51: Other reserves | D51: 289 | E51: 278 | F51: -1238
A52: Accumulated loss | D52: -300 | E52: -371 | F52: -597
A55: Total equity | D55: 1914 | E55: 1720 | F55: 2200
A59: Non-current liabilities
A61: Deferred tax liabilities | D61: 164 | E61: 123 | F61: 157
A62: Provision for environmental rehabilitation | D62: 148 | E62: 151 | F62: 182
A63: Retirement benefit obligation | D63: 11 | E63: 11 | F63: 13
A64: Other non-current liabilities | D64: 1 | E64: 3 | F64: 3
A65: Borrowings | D65: 139 | E65: 198 | F65: 280
E66: 0
E67: 0
A68: Total non-current liabilities | D68: 463 | E68: 486 | F68: 635
A72: Current liabilities
A74: Borrowings | D74: 20 | E74: 20 | F74: 0
A75: Income and mining taxes | D75: 3 | E75: 0 | F75: 0
A76: Trade and other payables | D76: 115 | E76: 105 | F76: 137
A79: Total current liabilities | D79: 138 | E79: 125 | F79: 137
A82: Total equity and liabilities | D82: 2515 | E82: 2331 | F82: 2972
A86: The balance sheet for June 2016 converted at a conversion rate of US$1 = R14.72 (December 2015 : US$1 = R15.62, June 2015 : US$1 = R12.16).
A89: The balance sheet at 30 June 2015 has been extracted from the 2015 annual financial statements.

Sheet Publish - Cash flow (US$)
A1: CONDENSED CONSOLIDATED CASH FLOW STATEMENTS (US$)
A2: (Convenience translation)
E7: Six months ended | I7: Year ended
E8: 30 June | F8: 31 December | G8: 30 June | I8: 30 June | K8: 30 June
E9: 2016 | F9: 2015 | G9: 2015 | I9: 2016 | K9: 2015
A10: Figures in million | E10: (Unaudited) | F10: (Unaudited) | G10: (Unaudited) | I10: (Unaudited) | K10: (Audited)
A14: Cash flow from operating activities
A15: Cash generated by operations | E15: 190 | F15: 127 | G15: 77 | I15: 321 | K15: 168
A16: Interest and dividends received | E16: 2 | F16: 3 | G16: 4 | I16: 5 | K16: 9
A17: Interest paid | E17: -8 | F17: -3 | G17: -5 | I17: -10.69029069 | K17: -9
A18: Income and mining taxes refunded | E18: -5 | F18: 1 | G18: 2 | I18: -4.483025129 | K18: 8
A21: Cash generated by operating activities | E21: 179 | F21: 128 | G21: 78 | I21: 311 | K21: 176
A24: Cash flow from investing activities
A25: (Increase)/decrease in restricted cash | E25: 0 | F25: 0 | G25: 1 | I25: -1 | K25: 1
A26: Decrease in restricted investments | E26: 2 | F26: 0 | G26: 3 | I26: 3 | K26: 2
A27: (Increase)/decrease in loan to associate | E27: 0 | F27: 1 | G27: 0 | I27: 0 | K27: -10
A28: Loan to ARM BBEE Trust | E28: -13 | F28: 0 | G28: 0 | I28: -14 | K28: 0
A29: Net additions to property, plant and equipment | E29: -82 | F29: -86 | G29: -120 | I29: -167.8030791 | K29: -246
A32: Cash utilised by investing activities | E32: -93 | F32: -85 | G32: -116 | I32: -179.8030791 | K32: -253
A35: Cash flow from financing activities
A36: Borrowings raised | E36: 0 | F36: 22 | G36: 79 | I36: 21 | K36: 80
A37: Borrowings repaid | E37: -60 | F37: -82 | G37: -67 | I37: -141.0428675 | K37: -65
A40: Cash generated/(utilised) by financing activities | E40: -60 | F40: -60 | G40: 12 | I40: -120.0428675 | K40: 15
A43: Foreign currency translation adjustments | E43: 3 | F43: -15 | G43: -5 | I43: -14 | K43: -22
A46: Net increase/(decrease) in cash and cash equivalents | E46: 29 | F46: -32 | G46: -31 | I46: -3 | K46: -84
A47: Cash and cash equivalents - beginning of period | E47: 56 | F47: 88 | G47: 119 | I47: 88 | K47: 172
A50: Cash and cash equivalents - end of period | E50: 85 | F50: 56 | G50: 88 | I50: 85 | K50: 88
A54: The currency conversion average rates for the six months ended: June 2016: US$1 = R15.39 (December 2015: US$1 = R14.24, June 2015: US$1 = R11.91). For year ended: June 2016: US$1 = R14.50 (June 2015: US$1 = R11.45).
A57: Closing balance translated at closing rates of: June 2016 : US$1 = R14.72 (December 2015 : US$1 = R15.62, June 2015 : US$1 = R12.16).
A59: The cash flow statement for the year ended 30 June 2015 has been extracted from the 2015 annual financial statements.

Sheet Segment Report (US$)
A1: SEGMENT REPORT (US$/IMPERIAL)
A2: for the year ended 30 June 2016 (Convenience translation)
B6: Revenue 30 June | D6: Production cost 30 June | F6: Production profit/(loss) 30 June | H6: Mining assets 30 June | J6: Capital expenditure# 30 June | L6: Ounces produced@ 30 June | N6: Tons milled@ 30 June
B7: 2016 | C7: 2015 | D7: 2016 | E7: 2015 | F7: 2016 | G7: 2015 | H7: 2016 | I7: 2015 | J7: 2016 | K7: 2015 | L7: 2016 | M7: 2015 | N7: 2016 | O7: 2015
B8: US$ million | D8: US$ million | F8: US$ million | H8: US$ million | J8: US$ million | L8: oz | N8: t'000
A10: South Africa
A11: Underground
A12: Kusasalethu | B12: 143 | C12: 169 | D12: 125 | E12: 174 | F12: 18 | G12: -5 | H12: 255.8893275 | I12: 298 | J12: 25 | K12: 40 | L12: 124198 | M12: 127092 | N12: 736 | O12: 1001
A13: Doornkop | B13: 102 | C13: 107 | D13: 72 | E13: 95 | F13: 30 | G13: 12 | H13: 202.7545813 | I13: 184 | J13: 14 | K13: 21 | L13: 87772 | M13: 85618 | N13: 695 | O13: 665
A14: Phakisa | B14: 151 | C14: 124 | D14: 95 | E14: 103 | F14: 56 | G14: 21 | H14: 288.5040055 | I14: 354 | J14: 22 | K14: 35 | L14: 128217 | M14: 100246 | N14: 756 | O14: 674
A15: Tshepong | B15: 190 | C15: 170 | D15: 127 | E15: 141 | F15: 63 | G15: 29 | H15: 282.7284896 | I15: 331 | J15: 21 | K15: 27 | L15: 161751 | M15: 137540 | N15: 1200 | O15: 1095
A16: Masimong | B16: 91 | C16: 98 | D16: 72 | E16: 87 | F16: 19 | G16: 11 | H16: 32.95441419 | I16: 73 | J16: 8 | K16: 15 | L16: 78190 | M16: 79187 | N16: 716 | O16: 739
A17: Target 1 | B17: 126 | C17: 152 | D17: 86 | E17: 104 | F17: 40 | G17: 48 | H17: 192.0189165 | I17: 229 | J17: 22 | K17: 26 | L17: 108895 | M17: 122944 | N17: 814 | O17: 826
A18: Bambanani | B18: 112 | C18: 116 | D18: 56 | E18: 62 | F18: 56 | G18: 54 | H18: 54.83342733 | I18: 68 | J18: 7 | K18: 10 | L18: 96870 | M18: 93495 | N18: 256 | O18: 253
A19: Joel | B19: 84 | C19: 91 | D19: 57 | E19: 67 | F19: 27 | G19: 24 | H19: 49.46559491 | I19: 48 | J19: 15 | K19: 16 | L19: 73239 | M19: 72596 | N19: 597 | O19: 607
A20: Unisel | B20: 64 | C20: 67 | D20: 52 | E20: 60 | F20: 12 | G20: 7 | H20: 36.89535445 | I20: 49 | J20: 4 | K20: 9 | L20: 54785 | M20: 54495 | N20: 467 | O20: 460
A21: Target 3(a) | B21: 0 | C21: 19 | D21: 0 | E21: 15 | F21: 0 | G21: 4 | H21: 35.74025127 | I21: 44 | J21: 0 | K21: 2 | L21: 0 | M21: 15529 | N21: 0 | O21: 99
A23: Surface
A24: All other surface operations | B24: 110 | C24: 117 | D24: 88 | E24: 95 | F24: 22 | G24: 22 | H24: 30.4403661 | I24: 40 | J24: 4 | K24: 4 | L24: 95553 | M24: 94105 | N24: 12112 | O24: 11488
A27: Total South Africa | B27: 1173 | C27: 1230 | D27: 830 | E27: 1003 | F27: 343 | G27: 227 | H27: 1462.224729 | I27: 1718 | J27: 142 | K27: 205 | L27: 1009470 | M27: 982847 | N27: 18349 | O27: 17907
A30: International
A31: Hidden Valley | B31: 91 | C31: 118 | D31: 84 | E31: 100 | F31: 7 | G31: 18 | H31: 44.16570974 | I31: 114 | J31: 5 | K31: 11 | L31: 72565 | M31: 94619 | N31: 1906 | O31: 2012
A34: Total international | B34: 91 | C34: 118 | D34: 84 | E34: 100 | F34: 7 | G34: 18 | H34: 44.16570974 | I34: 114 | J34: 5 | K34: 11 | L34: 72565 | M34: 94619 | N34: 1906 | O34: 2012
A37: Total operations | B37: 1264 | C37: 1348 | D37: 914 | E37: 1103 | F37: 350 | G37: 245 | H37: 1506.390438 | I37: 1832 | J37: 147 | K37: 216 | L37: 1082035 | M37: 1077466 | N37: 20255 | O37: 19919
A40: # Capital expenditure for international operations excludes expenditure spend on Wafi-Golpu of US$16 million (2015: US$10 million).
A41: (a) Target 3 was placed on care and maintenance in October 2014.
A42: @ Production statistics are unaudited and unreviewed.
A44: The segment report for the year ended 30 June 2015 has been audited. The segment report for the year ended 30 June 2016 has not been reviewed or audited.
E951: A 10% decrease in the gold price at the reporting date would have resulted in the following additional impairments being recognised in the 2010 and 2009 financial year. This analysis assumes that all other variables remain constant. The analysis is performed on the same basis for 2009.
I959: 9 | M959: President Steyn 2
I960: 140 | M960: Evander 8
I966: 149

Sheet Publish CIE (US$) (hidden)
E1: =#REF! ->  | K1: =#REF! -> 
B2: CONDENSED CONSOLIDATED STATEMENTS OF CHANGES IN EQUITY (US$)
B4: for the year ended 30 June 2016 (Convenience translation)
B9: Figures in million | E9: Share capital | F9: Other reserves | G9: Accumulated loss | H9: Total
B12: ='Publish CIE (R)'!B11 -> Balance - 30 June 2015 | E12: =ROUNDDOWN(+'Publish CIE (R)'!E11/$E$1,0) ->  | F12: =ROUND(+'Publish CIE (R)'!F11/$E$1,0) ->  | G12: =ROUND(+'Publish CIE (R)'!G11/$E$1,0) ->  | H12: =SUM(E12:G12) -> 
A13: BB210500 | B13: ='Publish CIE (R)'!B12 -> Share-based payments | E13: =ROUND(+'Publish CIE (R)'!E12/$E$1,0) ->  | F13: =ROUND(+'Publish CIE (R)'!F12/$E$1,0) ->  | G13: =ROUND(+'Publish CIE (R)'!G12/$E$1,0) -> 
B14: ='Publish CIE (R)'!B13 -> Reversal of provision for odd lot repurchases | E14: =ROUND(+'Publish CIE (R)'!E13/$E$1,0) ->  | F14: =ROUND(+'Publish CIE (R)'!F13/$E$1,0) ->  | G14: =ROUND(+'Publish CIE (R)'!G13/$E$1,0) -> 
B15: ='Publish CIE (R)'!B14 -> Net profit for the period | E15: =ROUND(+'Publish CIE (R)'!E14/$E$1,0) ->  | F15: =ROUND(+'Publish CIE (R)'!F14/$E$1,0) ->  | G15: =ROUND(+'Publish CIE (R)'!G14/$E$1,0) -> 
B16: ='Publish CIE (R)'!B15 -> Other comprehensive income for the period | E16: =ROUND(+'Publish CIE (R)'!E15/$E$1,0) ->  | F16: =ROUND(+'Publish CIE (R)'!F15/$E$1,0) ->  | G16: =ROUND(+'Publish CIE (R)'!G15/$E$1,0) -> 
A17: BB550000 | B17: ='Publish CIE (R)'!B16 -> Dividends paid | E17: =ROUND(+'Publish CIE (R)'!E16/#REF!,0) ->  | F17: =ROUND(+'Publish CIE (R)'!F16/#REF!,0) ->  | G17: =ROUND(+'Publish CIE (R)'!G16/#REF!,0) -> 
A20: BB100000 | B20: Balance - 30 June 2016 (Unaudited) | E20: =SUM(E12:E16) ->  | F20: =SUM(F12:F16) -> 
B23: ='Publish CIE (R)'!B22 -> Balance - 30 June 2014 | E23: 4035 | F23: -887 | G23: -223 | H23: =SUM(E23:G23) -> 2925
B24: ='Publish CIE (R)'!B23 -> Share-based payments | E24: =ROUND('Publish CIE (R)'!E23/'Publish CIE (US$)'!$K$1,0) ->  | F24: 16 | G24: =ROUND('Publish CIE (R)'!G23/'Publish CIE (US$)'!$K$1,0) ->  | H24: =ROUND(SUM(E24:G24),0) -> 
B25: ='Publish CIE (R)'!B24 -> Net loss for the period | E25: =ROUND('Publish CIE (R)'!E24/'Publish CIE (US$)'!$K$1,0) ->  | F25: =ROUND('Publish CIE (R)'!F24/'Publish CIE (US$)'!$K$1,0) ->  | G25: -374 | H25: =ROUND(SUM(E25:G25),0) -> 
B26: ='Publish CIE (R)'!B25 -> Other comprehensive income for the period | E26: =ROUND('Publish CIE (R)'!E25/'Publish CIE (US$)'!$K$1,0) ->  | F26: -367 | G26: =ROUND('Publish CIE (R)'!G25/'Publish CIE (US$)'!$K$1,0) ->  | H26: =ROUND(SUM(E26:G26),0) -> 
B29: ='Publish CIE (R)'!B28 -> Balance - 30 June 2015 (Audited) | E29: =SUM(E23:E26) ->  | F29: =SUM(F23:F26) -> 
B32: The currency conversion closing rates for the period ended 30 June 2016: US$1 = R14.72 (June 2015: US$1 = R12.16).
B34: The statement of changes in equity for the year ended 30 June 2015 has been extracted from the 2015 annual financial statements.
